[Event "Late-Titled-Tuesday-Blitz-June-04-2024"]
[Site "Chess.com"]
[Date "2024.06.04"]
[Round "8"]
[White "jaskol95"]
[Black "fpawn"]
[Result "1/2-1/2"]
[WhiteElo "2562"]
[BlackElo "2434"]
[TimeControl "180+1"]
[EndTime "15:27:20 PDT"]
[Termination "Game drawn - insufficient material"]

1. e4 {[%clk 0:03:00.9]} 1... c5 {[%clk 0:02:59.3]} 2. Nf3 {[%clk 0:03:00.7]}
2... Nc6 {[%clk 0:02:59.5]} 3. b4 {[%clk 0:03:01.1]} 3... cxb4 {[%clk 0:02:58]}
4. d4 {[%clk 0:03:01.6]} 4... d5 {[%clk 0:02:58.1]} 5. exd5 {[%clk 0:03:02]}
5... Qxd5 {[%clk 0:02:58.1]} 6. c4 {[%clk 0:03:02.7]} 6... Qa5 {[%clk
0:02:52.9]} 7. d5 {[%clk 0:02:55.9]} 7... Nb8 {[%clk 0:02:50.7]} 8. Bd2 {[%clk
0:02:36.7]} 8... Bg4 {[%clk 0:02:48.4]} 9. Be2 {[%clk 0:02:35.1]} 9... Nf6
{[%clk 0:02:46.5]} 10. O-O {[%clk 0:02:34.7]} 10... Nbd7 {[%clk 0:02:45.6]} 11.
a3 {[%clk 0:02:34]} 11... e6 {[%clk 0:02:43.8]} 12. Nd4 {[%clk 0:02:29.1]} 12...
Bxe2 {[%clk 0:02:41.2]} 13. Qxe2 {[%clk 0:02:29.2]} 13... Bc5 {[%clk 0:02:15.4]}
14. dxe6 {[%clk 0:02:19.2]} 14... O-O {[%clk 0:01:59.4]} 15. exd7 {[%clk
0:02:12.7]} 15... Bxd4 {[%clk 0:01:54.9]} 16. Bxb4 {[%clk 0:02:12.1]} 16... Qe5
{[%clk 0:01:54.8]} 17. Qxe5 {[%clk 0:02:08]} 17... Bxe5 {[%clk 0:01:54.4]} 18.
Ra2 {[%clk 0:01:41.7]} 18... Rfd8 {[%clk 0:01:42.2]} 19. Re1 {[%clk 0:01:38.9]}
19... Bc7 {[%clk 0:01:32.5]} 20. Be7 {[%clk 0:01:25.2]} 20... Rxd7 {[%clk
0:01:29.3]} 21. Bxf6 {[%clk 0:01:25.8]} 21... gxf6 {[%clk 0:01:28.3]} 22. Nc3
{[%clk 0:01:17.2]} 22... Ba5 {[%clk 0:01:26.3]} 23. Rc2 {[%clk 0:00:55.5]} 23...
Rd3 {[%clk 0:01:12.2]} 24. Re3 {[%clk 0:00:34.7]} 24... Rxe3 {[%clk 0:01:07.4]}
25. fxe3 {[%clk 0:00:34.8]} 25... Bxc3 {[%clk 0:01:07.4]} 26. Rxc3 {[%clk
0:00:35.5]} 26... Rc8 {[%clk 0:01:05.8]} 27. Kf2 {[%clk 0:00:35.7]} 27... Kf8
{[%clk 0:01:05.8]} 28. e4 {[%clk 0:00:34.2]} 28... b6 {[%clk 0:01:05.7]} 29. Ke3
{[%clk 0:00:34.7]} 29... Ke7 {[%clk 0:01:05.4]} 30. Rc1 {[%clk 0:00:32.1]} 30...
Kd6 {[%clk 0:01:05.3]} 31. Kd4 {[%clk 0:00:32.4]} 31... Ke6 {[%clk 0:01:05.4]}
32. Rf1 {[%clk 0:00:31.4]} 32... Rd8+ {[%clk 0:01:05.2]} 33. Kc3 {[%clk
0:00:32.1]} 33... Rd6 {[%clk 0:01:01.5]} 34. Rf5 {[%clk 0:00:30.5]} 34... Rd1
{[%clk 0:01:00.9]} 35. Rh5 {[%clk 0:00:29.4]} 35... Re1 {[%clk 0:00:58.4]} 36.
Kd3 {[%clk 0:00:22.8]} 36... Ra1 {[%clk 0:00:57.5]} 37. Rxh7 {[%clk 0:00:20.6]}
37... Rxa3+ {[%clk 0:00:57.5]} 38. Kd4 {[%clk 0:00:21.3]} 38... Ra2 {[%clk
0:00:56.5]} 39. g3 {[%clk 0:00:20.4]} 39... Rd2+ {[%clk 0:00:55.4]} 40. Kc3
{[%clk 0:00:19.9]} 40... Rd1 {[%clk 0:00:53.6]} 41. h4 {[%clk 0:00:19.7]} 41...
Rg1 {[%clk 0:00:53.5]} 42. Rg7 {[%clk 0:00:19.9]} 42... Ke5 {[%clk 0:00:48]} 43.
h5 {[%clk 0:00:18.8]} 43... Rh1 {[%clk 0:00:41.6]} 44. g4 {[%clk 0:00:19.1]}
44... Kxe4 {[%clk 0:00:35.7]} 45. Rxf7 {[%clk 0:00:18.1]} 45... Ke5 {[%clk
0:00:31.7]} 46. Rg7 {[%clk 0:00:15.1]} 46... a5 {[%clk 0:00:29.7]} 47. Kb3
{[%clk 0:00:13.9]} 47... Rb1+ {[%clk 0:00:24.1]} 48. Ka3 {[%clk 0:00:12.8]}
48... Rh1 {[%clk 0:00:23.8]} 49. Ka4 {[%clk 0:00:12.7]} 49... Rh4 {[%clk
0:00:18.1]} 50. Kb5 {[%clk 0:00:11.7]} 50... f5 {[%clk 0:00:18.4]} 51. Rg5
{[%clk 0:00:07.8]} 51... Rxg4 {[%clk 0:00:17.2]} 52. Rg6 {[%clk 0:00:02.4]}
52... Rxg6 {[%clk 0:00:16.7]} 53. hxg6 {[%clk 0:00:03]} 53... Kf6 {[%clk
0:00:17.2]} 54. Kxb6 {[%clk 0:00:03.7]} 54... f4 {[%clk 0:00:17.5]} 55. c5
{[%clk 0:00:04.3]} 55... f3 {[%clk 0:00:17.8]} 56. c6 {[%clk 0:00:04.4]} 56...
f2 {[%clk 0:00:17.5]} 57. c7 {[%clk 0:00:05]} 57... f1=Q {[%clk 0:00:17.4]} 58.
c8=Q {[%clk 0:00:05.5]} 58... Qb1+ {[%clk 0:00:16.2]} 59. Kxa5 {[%clk
0:00:04.9]} 59... Qa2+ {[%clk 0:00:16.5]} 60. Kb4 {[%clk 0:00:05]} 60... Qb2+
{[%clk 0:00:16.8]} 61. Ka4 {[%clk 0:00:05.3]} 61... Qa2+ {[%clk 0:00:17.2]} 62.
Kb5 {[%clk 0:00:05.8]} 62... Qb2+ {[%clk 0:00:17.5]} 63. Ka6 {[%clk 0:00:06.4]}
63... Qa3+ {[%clk 0:00:17.8]} 64. Kb7 {[%clk 0:00:07.1]} 64... Qb4+ {[%clk
0:00:18.2]} 65. Ka8 {[%clk 0:00:07.8]} 65... Qa4+ {[%clk 0:00:18.4]} 66. Kb8
{[%clk 0:00:08.4]} 66... Qb4+ {[%clk 0:00:18.8]} 67. Qb7 {[%clk 0:00:09.2]}
67... Qxb7+ {[%clk 0:00:18.8]} 68. Kxb7 {[%clk 0:00:10.1]} 68... Kxg6 {[%clk
0:00:19.1]} 1/2-1/2

[Event "Late-Titled-Tuesday-Blitz-June-04-2024"]
[Site "Chess.com"]
[Date "2024.06.04"]
[Round "8"]
[White "EsmeraldasAnderson03"]
[Black "zverr1"]
[Result "0-1"]
[WhiteElo "2465"]
[BlackElo "2615"]
[TimeControl "180+1"]
[EndTime "15:27:21 PDT"]
[Termination "zverr1 won on time"]

1. d4 {[%clk 0:02:54.8]} 1... Nf6 {[%clk 0:02:59.8]} 2. c4 {[%clk 0:02:54.9]}
2... g6 {[%clk 0:03:00.3]} 3. Nc3 {[%clk 0:02:54.9]} 3... d5 {[%clk 0:03:00.9]}
4. cxd5 {[%clk 0:02:55.8]} 4... Nxd5 {[%clk 0:03:01.8]} 5. Nb1 {[%clk
0:02:54.4]} 5... Bg7 {[%clk 0:02:53.4]} 6. e4 {[%clk 0:02:54.2]} 6... Nb6 {[%clk
0:02:52.3]} 7. Be3 {[%clk 0:02:54.5]} 7... O-O {[%clk 0:02:51.8]} 8. Nc3 {[%clk
0:02:53.5]} 8... Nc6 {[%clk 0:02:46.6]} 9. Nf3 {[%clk 0:02:49.1]} 9... Bg4
{[%clk 0:02:45.5]} 10. d5 {[%clk 0:02:49.2]} 10... Ne5 {[%clk 0:02:31.5]} 11.
Be2 {[%clk 0:02:48.6]} 11... Nec4 {[%clk 0:02:28.3]} 12. Bc1 {[%clk 0:02:44.6]}
12... c6 {[%clk 0:02:01.8]} 13. O-O {[%clk 0:02:38.7]} 13... cxd5 {[%clk
0:01:57.3]} 14. exd5 {[%clk 0:02:38.8]} 14... Rc8 {[%clk 0:01:49.4]} 15. h3
{[%clk 0:02:33.6]} 15... Bxf3 {[%clk 0:01:40.5]} 16. Bxf3 {[%clk 0:02:33.2]}
16... Nxb2 {[%clk 0:01:41.1]} 17. Bxb2 {[%clk 0:02:28.4]} 17... Bxc3 {[%clk
0:01:40.9]} 18. Bxc3 {[%clk 0:02:27.5]} 18... Rxc3 {[%clk 0:01:41.8]} 19. Re1
{[%clk 0:02:24]} 19... Qd6 {[%clk 0:01:33.2]} 20. Qe2 {[%clk 0:02:16.8]} 20...
Re8 {[%clk 0:01:19.8]} 21. Qe5 {[%clk 0:02:14.5]} 21... Qxe5 {[%clk 0:01:09]}
22. Rxe5 {[%clk 0:02:15.4]} 22... Ra3 {[%clk 0:00:47.9]} 23. d6 {[%clk
0:02:09.8]} 23... e6 {[%clk 0:00:47.8]} 24. Bxb7 {[%clk 0:02:03.7]} 24... Rd8
{[%clk 0:00:43.5]} 25. Rd1 {[%clk 0:01:13]} 25... Nc4 {[%clk 0:00:38.3]} 26. Re2
{[%clk 0:01:03.4]} 26... Rxd6 {[%clk 0:00:34.1]} 27. Rc1 {[%clk 0:00:52.6]}
27... Rd2 {[%clk 0:00:18.2]} 28. Rxd2 {[%clk 0:00:48.1]} 28... Nxd2 {[%clk
0:00:19.1]} 29. Rc2 {[%clk 0:00:48.6]} 29... Nb1 {[%clk 0:00:19.4]} 30. Bf3
{[%clk 0:00:22.7]} 30... Nc3 {[%clk 0:00:18.4]} 31. h4 {[%clk 0:00:16.4]} 31...
h5 {[%clk 0:00:17.9]} 32. Kh2 {[%clk 0:00:16.7]} 32... a5 {[%clk 0:00:16.9]} 33.
Bc6 {[%clk 0:00:14.2]} 33... Nxa2 {[%clk 0:00:15.6]} 34. Bb5 {[%clk 0:00:12.8]}
34... Nc3 {[%clk 0:00:15.2]} 35. Bc4 {[%clk 0:00:12.3]} 35... Kg7 {[%clk
0:00:12.8]} 36. f3 {[%clk 0:00:12.7]} 36... a4 {[%clk 0:00:09.9]} 37. Rb2 {[%clk
0:00:12.8]} 37... Nd5 {[%clk 0:00:09.5]} 38. Rb5 {[%clk 0:00:11.4]} 38... Ne3
{[%clk 0:00:08]} 39. Rb4 {[%clk 0:00:06.1]} 39... Nxc4 {[%clk 0:00:06.4]} 40.
Rxc4 {[%clk 0:00:06.3]} 40... Ra1 {[%clk 0:00:07.3]} 41. Kg3 {[%clk 0:00:06.3]}
41... a3 {[%clk 0:00:07.2]} 42. Ra4 {[%clk 0:00:07]} 42... Kf6 {[%clk
0:00:07.4]} 43. Ra5 {[%clk 0:00:07.5]} 43... e5 {[%clk 0:00:03.9]} 44. Kh2
{[%clk 0:00:07.9]} 44... Kf5 {[%clk 0:00:04.1]} 45. Kg3 {[%clk 0:00:08.6]} 45...
f6 {[%clk 0:00:04.4]} 46. Ra4 {[%clk 0:00:09]} 46... g5 {[%clk 0:00:04.1]} 47.
Kh2 {[%clk 0:00:07.2]} 47... g4 {[%clk 0:00:02.4]} 48. Kg3 {[%clk 0:00:06.4]}
48... gxf3 {[%clk 0:00:02.5]} 49. Kxf3 {[%clk 0:00:07.3]} 49... a2 {[%clk
0:00:03]} 50. Kg3 {[%clk 0:00:07.7]} 50... Kg6 {[%clk 0:00:03.4]} 51. Ra8 {[%clk
0:00:06.8]} 51... f5 {[%clk 0:00:03.7]} 52. Ra6+ {[%clk 0:00:06.7]} 52... Kf7
{[%clk 0:00:03.7]} 53. Kf2 {[%clk 0:00:06.5]} 53... f4 {[%clk 0:00:03.2]} 54.
Ke2 {[%clk 0:00:05]} 54... Rg1 {[%clk 0:00:02.2]} 0-1

[Event "Late-Titled-Tuesday-Blitz-June-04-2024"]
[Site "Chess.com"]
[Date "2024.06.04"]
[Round "8"]
[White "Szparu"]
[Black "SaraciNderim"]
[Result "1/2-1/2"]
[WhiteElo "2978"]
[BlackElo "2893"]
[TimeControl "180+1"]
[EndTime "15:27:25 PDT"]
[Termination "Game drawn - insufficient material"]

1. Nf3 {[%clk 0:03:00.9]} 1... Nf6 {[%clk 0:02:58.2]} 2. d4 {[%clk 0:03:01.4]}
2... d5 {[%clk 0:02:56.4]} 3. c4 {[%clk 0:03:00.8]} 3... e6 {[%clk 0:02:56.2]}
4. g3 {[%clk 0:03:01.1]} 4... c6 {[%clk 0:02:50.4]} 5. Bg2 {[%clk 0:02:58.6]}
5... Nbd7 {[%clk 0:02:50.1]} 6. O-O {[%clk 0:02:57.4]} 6... b6 {[%clk
0:02:50.4]} 7. Nc3 {[%clk 0:02:56.4]} 7... Bb7 {[%clk 0:02:50.5]} 8. Qd3 {[%clk
0:02:55.5]} 8... Be7 {[%clk 0:02:49.1]} 9. e4 {[%clk 0:02:52.7]} 9... dxe4
{[%clk 0:02:49]} 10. Nxe4 {[%clk 0:02:52.6]} 10... O-O {[%clk 0:02:48.4]} 11.
Rd1 {[%clk 0:02:47.8]} 11... c5 {[%clk 0:02:30.4]} 12. Nxf6+ {[%clk 0:02:27.3]}
12... Nxf6 {[%clk 0:02:13.6]} 13. Be3 {[%clk 0:02:24]} 13... cxd4 {[%clk
0:02:10.6]} 14. Bxd4 {[%clk 0:02:23.4]} 14... Rc8 {[%clk 0:02:05.1]} 15. b3
{[%clk 0:02:22.7]} 15... Bc5 {[%clk 0:01:55.7]} 16. Bxc5 {[%clk 0:02:18.3]}
16... Qxd3 {[%clk 0:01:51.3]} 17. Rxd3 {[%clk 0:02:19.2]} 17... Rxc5 {[%clk
0:01:49.3]} 18. Rad1 {[%clk 0:02:20.1]} 18... g6 {[%clk 0:01:42.2]} 19. Nd4
{[%clk 0:02:17.3]} 19... Bxg2 {[%clk 0:01:38.8]} 20. Kxg2 {[%clk 0:02:18.2]}
20... a6 {[%clk 0:01:39.2]} 21. Nf3 {[%clk 0:02:14.7]} 21... Rfc8 {[%clk
0:01:37.3]} 22. Rd6 {[%clk 0:02:08.7]} 22... b5 {[%clk 0:01:32.3]} 23. Rxa6
{[%clk 0:01:57.5]} 23... bxc4 {[%clk 0:01:31.1]} 24. bxc4 {[%clk 0:01:19]} 24...
Rxc4 {[%clk 0:01:27.8]} 25. Rd2 {[%clk 0:01:14.5]} 25... Rc2 {[%clk 0:01:18.8]}
26. Rad6 {[%clk 0:01:06.1]} 26... Kg7 {[%clk 0:01:07]} 27. Rxc2 {[%clk
0:01:05.3]} 27... Rxc2 {[%clk 0:01:06.2]} 28. Rd2 {[%clk 0:01:06.1]} 28... Rc3
{[%clk 0:01:05.8]} 29. Rb2 {[%clk 0:01:05.9]} 29... Ne4 {[%clk 0:01:02.6]} 30.
Ne5 {[%clk 0:01:04.4]} 30... Rc5 {[%clk 0:00:56.3]} 31. f4 {[%clk 0:01:02.5]}
31... Ra5 {[%clk 0:00:52.7]} 32. Kf3 {[%clk 0:00:52.7]} 32... Nd6 {[%clk
0:00:44.3]} 33. Rd2 {[%clk 0:00:46.8]} 33... Ra3+ {[%clk 0:00:42.7]} 34. Rd3
{[%clk 0:00:43.6]} 34... Ra6 {[%clk 0:00:38.7]} 35. a3 {[%clk 0:00:37.9]} 35...
f6 {[%clk 0:00:37.6]} 36. Nd7 {[%clk 0:00:36.4]} 36... Nc4 {[%clk 0:00:35.5]}
37. Nc5 {[%clk 0:00:35.9]} 37... Rxa3 {[%clk 0:00:35.6]} 38. Rxa3 {[%clk
0:00:35.8]} 38... Nxa3 {[%clk 0:00:35.5]} 39. Nxe6+ {[%clk 0:00:36.4]} 39... Kf7
{[%clk 0:00:36]} 40. Nd4 {[%clk 0:00:36.2]} 40... Nc4 {[%clk 0:00:36.1]} 41. Ke4
{[%clk 0:00:36.2]} 41... Nb6 {[%clk 0:00:32.6]} 42. h3 {[%clk 0:00:34.1]} 42...
h5 {[%clk 0:00:31.9]} 43. g4 {[%clk 0:00:34.2]} 43... hxg4 {[%clk 0:00:32]} 44.
hxg4 {[%clk 0:00:35.1]} 44... f5+ {[%clk 0:00:31.2]} 45. gxf5 {[%clk 0:00:35.1]}
45... gxf5+ {[%clk 0:00:32.1]} 46. Nxf5 {[%clk 0:00:36]} 46... Kf6 {[%clk
0:00:31.7]} 47. Ne3 {[%clk 0:00:36.2]} 47... Ke6 {[%clk 0:00:29.5]} 48. f5+
{[%clk 0:00:34.7]} 48... Kf7 {[%clk 0:00:29.6]} 49. Ng4 {[%clk 0:00:33.3]} 49...
Nc8 {[%clk 0:00:28.9]} 50. Ke5 {[%clk 0:00:32.2]} 50... Ne7 {[%clk 0:00:28.5]}
51. Nh6+ {[%clk 0:00:32.7]} 51... Kf8 {[%clk 0:00:28.2]} 52. f6 {[%clk
0:00:32.9]} 52... Nc6+ {[%clk 0:00:23.1]} 53. Ke4 {[%clk 0:00:29.4]} 53... Nd8
{[%clk 0:00:21.8]} 54. Ng4 {[%clk 0:00:29.2]} 54... Ne6 {[%clk 0:00:17]} 55. Ne5
{[%clk 0:00:28.4]} 55... Ng5+ {[%clk 0:00:15.8]} 56. Kf5 {[%clk 0:00:28.8]}
56... Nh7 {[%clk 0:00:15.5]} 57. f7 {[%clk 0:00:29.3]} 57... Kg7 {[%clk
0:00:02.2]} 58. Kg4 {[%clk 0:00:28.2]} 58... Kf8 {[%clk 0:00:02.6]} 59. Kh5
{[%clk 0:00:28.2]} 59... Kg7 {[%clk 0:00:03.1]} 60. Kg4 {[%clk 0:00:17.9]} 60...
Kf6 {[%clk 0:00:03.5]} 61. Kf4 {[%clk 0:00:18.8]} 61... Ke6 {[%clk 0:00:03.6]}
62. Nf3 {[%clk 0:00:12.1]} 62... Kxf7 {[%clk 0:00:03.2]} 1/2-1/2

[Event "Late-Titled-Tuesday-Blitz-June-04-2024"]
[Site "Chess.com"]
[Date "2024.06.04"]
[Round "8"]
[White "ImportedItalianMaple"]
[Black "mac0504"]
[Result "1-0"]
[WhiteElo "2586"]
[BlackElo "2764"]
[TimeControl "180+1"]
[EndTime "15:27:26 PDT"]
[Termination "ImportedItalianMaple won on time"]

1. e4 {[%clk 0:03:00.9]} 1... Nc6 {[%clk 0:02:54.7]} 2. Nf3 {[%clk 0:03:00]}
2... d6 {[%clk 0:02:54.9]} 3. Nc3 {[%clk 0:02:54.1]} 3... Nf6 {[%clk 0:02:54.9]}
4. h3 {[%clk 0:02:43.3]} 4... g6 {[%clk 0:02:54.5]} 5. g3 {[%clk 0:02:41.4]}
5... Bg7 {[%clk 0:02:54.5]} 6. Bg2 {[%clk 0:02:41.6]} 6... O-O {[%clk
0:02:53.2]} 7. O-O {[%clk 0:02:41.6]} 7... e5 {[%clk 0:02:52.1]} 8. d4 {[%clk
0:02:36.7]} 8... exd4 {[%clk 0:02:49.1]} 9. Nxd4 {[%clk 0:02:36.7]} 9... Bd7
{[%clk 0:02:49.6]} 10. Be3 {[%clk 0:02:35.3]} 10... Re8 {[%clk 0:02:46.8]} 11.
Nde2 {[%clk 0:02:26.2]} 11... h5 {[%clk 0:02:27.2]} 12. Qd2 {[%clk 0:02:22.6]}
12... Ne5 {[%clk 0:02:20.4]} 13. b3 {[%clk 0:02:22.5]} 13... Bxh3 {[%clk
0:02:20.6]} 14. Bg5 {[%clk 0:02:12.7]} 14... Bxg2 {[%clk 0:02:18.5]} 15. Kxg2
{[%clk 0:02:13.6]} 15... Qd7 {[%clk 0:02:09.7]} 16. Rae1 {[%clk 0:02:08.4]}
16... c6 {[%clk 0:02:05.2]} 17. f4 {[%clk 0:02:05.8]} 17... Neg4 {[%clk
0:02:05.4]} 18. Ng1 {[%clk 0:01:49.2]} 18... Nh7 {[%clk 0:01:42.3]} 19. Nf3
{[%clk 0:01:43.6]} 19... Nxg5 {[%clk 0:01:40.8]} 20. Nxg5 {[%clk 0:01:43.7]}
20... Qe7 {[%clk 0:01:28.3]} 21. Qd3 {[%clk 0:01:33.8]} 21... Qf6 {[%clk
0:01:24]} 22. Nd1 {[%clk 0:01:29.6]} 22... Rad8 {[%clk 0:01:21.6]} 23. Nf2
{[%clk 0:01:28]} 23... Nxf2 {[%clk 0:01:20.2]} 24. Rxf2 {[%clk 0:01:28.7]} 24...
Qd4 {[%clk 0:01:15]} 25. Nf3 {[%clk 0:01:25.7]} 25... Qxd3 {[%clk 0:01:14.9]}
26. cxd3 {[%clk 0:01:26]} 26... a5 {[%clk 0:00:59.9]} 27. Rc2 {[%clk 0:01:25]}
27... a4 {[%clk 0:00:59.3]} 28. bxa4 {[%clk 0:01:23.3]} 28... Ra8 {[%clk
0:01:00]} 29. Rb1 {[%clk 0:01:21]} 29... Re7 {[%clk 0:00:58.8]} 30. Rc4 {[%clk
0:01:20.2]} 30... d5 {[%clk 0:00:50.7]} 31. Rcb4 {[%clk 0:01:19.4]} 31... dxe4
{[%clk 0:00:49.8]} 32. dxe4 {[%clk 0:01:20.1]} 32... c5 {[%clk 0:00:40.8]} 33.
Rc4 {[%clk 0:01:17.4]} 33... Ra5 {[%clk 0:00:31.3]} 34. Rb5 {[%clk 0:01:12.5]}
34... Rxb5 {[%clk 0:00:26.2]} 35. axb5 {[%clk 0:01:13.4]} 35... b6 {[%clk
0:00:26.6]} 36. a4 {[%clk 0:01:06.9]} 36... Rd7 {[%clk 0:00:21.6]} 37. a5 {[%clk
0:01:04.8]} 37... bxa5 {[%clk 0:00:21.6]} 38. Rxc5 {[%clk 0:01:05.5]} 38... Rb7
{[%clk 0:00:18.6]} 39. e5 {[%clk 0:00:55.3]} 39... Bf8 {[%clk 0:00:18.7]} 40.
Rd5 {[%clk 0:00:53.7]} 40... a4 {[%clk 0:00:19]} 41. Nd2 {[%clk 0:00:13.9]}
41... a3 {[%clk 0:00:18.9]} 42. Nb3 {[%clk 0:00:09.8]} 42... a2 {[%clk
0:00:18.5]} 43. Na1 {[%clk 0:00:10.4]} 43... Bb4 {[%clk 0:00:08.5]} 44. Rd8+
{[%clk 0:00:06.9]} 44... Kg7 {[%clk 0:00:08.6]} 45. Ra8 {[%clk 0:00:07.7]} 45...
Rxb5 {[%clk 0:00:03.7]} 46. Rxa2 {[%clk 0:00:08.3]} 46... Bc3 {[%clk 0:00:02.9]}
47. Nc2 {[%clk 0:00:08.7]} 47... Rb1 {[%clk 0:00:02.7]} 48. Ne3 {[%clk
0:00:09.2]} 48... Bd4 {[%clk 0:00:03]} 49. Kf3 {[%clk 0:00:09.5]} 49... Bxe3
{[%clk 0:00:03]} 50. Kxe3 {[%clk 0:00:10.4]} 50... Rg1 {[%clk 0:00:02.5]} 51.
Kf2 {[%clk 0:00:11]} 51... Rb1 {[%clk 0:00:02.8]} 52. Ra6 {[%clk 0:00:11.7]}
52... Rb2+ {[%clk 0:00:03.3]} 53. Kf3 {[%clk 0:00:12.3]} 53... Rb3+ {[%clk
0:00:04.1]} 54. Kg2 {[%clk 0:00:13.1]} 54... Kg8 {[%clk 0:00:03.6]} 55. Kh3
{[%clk 0:00:13.7]} 55... Rb1 {[%clk 0:00:03.7]} 56. Kh4 {[%clk 0:00:14.4]} 56...
Kg7 {[%clk 0:00:04.1]} 57. Ra7 {[%clk 0:00:13.6]} 57... Kf8 {[%clk 0:00:04.6]}
58. Kg5 {[%clk 0:00:14]} 58... Rb3 {[%clk 0:00:05.2]} 59. Kf6 {[%clk 0:00:14.3]}
59... Kg8 {[%clk 0:00:03.6]} 60. Rxf7 {[%clk 0:00:13.6]} 60... Rxg3 {[%clk
0:00:03]} 61. Rg7+ {[%clk 0:00:13.2]} 61... Kf8 {[%clk 0:00:02.3]} 62. e6 {[%clk
0:00:12.1]} 62... Rf3 {[%clk 0:00:01.4]} 63. e7+ {[%clk 0:00:12.6]} 63... Ke8
{[%clk 0:00:01.5]} 64. Rg8+ {[%clk 0:00:13.4]} 1-0

[Event "Late-Titled-Tuesday-Blitz-June-04-2024"]
[Site "Chess.com"]
[Date "2024.06.04"]
[Round "8"]
[White "MaestroCheck"]
[Black "Mops_2004"]
[Result "1-0"]
[WhiteElo "2641"]
[BlackElo "2784"]
[TimeControl "180+1"]
[EndTime "15:27:26 PDT"]
[Termination "MaestroCheck won on time"]

1. e4 {[%clk 0:03:00.9]} 1... g6 {[%clk 0:02:59.6]} 2. d4 {[%clk 0:03:00.7]}
2... Bg7 {[%clk 0:03:00.1]} 3. Nc3 {[%clk 0:03:01.2]} 3... d6 {[%clk 0:03:00.2]}
4. Be3 {[%clk 0:03:00.8]} 4... a6 {[%clk 0:03:00.5]} 5. Bd3 {[%clk 0:02:59.8]}
5... b5 {[%clk 0:02:58.9]} 6. Nf3 {[%clk 0:03:00.3]} 6... Nd7 {[%clk 0:02:58.3]}
7. h4 {[%clk 0:02:58.3]} 7... c5 {[%clk 0:02:56.7]} 8. h5 {[%clk 0:02:55.4]}
8... cxd4 {[%clk 0:02:56.7]} 9. Bxd4 {[%clk 0:02:54.3]} 9... Bxd4 {[%clk
0:02:56.3]} 10. Nxd4 {[%clk 0:02:54.8]} 10... g5 {[%clk 0:02:23.1]} 11. a4
{[%clk 0:02:22.6]} 11... b4 {[%clk 0:02:10.2]} 12. Nd5 {[%clk 0:02:21.6]} 12...
Bb7 {[%clk 0:02:10.3]} 13. Nxb4 {[%clk 0:02:18.6]} 13... Ngf6 {[%clk 0:02:09.2]}
14. Qe2 {[%clk 0:02:07.1]} 14... Qb6 {[%clk 0:02:07]} 15. c3 {[%clk 0:02:01.5]}
15... a5 {[%clk 0:02:04.1]} 16. Na2 {[%clk 0:02:00.3]} 16... Nc5 {[%clk
0:01:56.5]} 17. Bb5+ {[%clk 0:02:00.2]} 17... Kf8 {[%clk 0:01:56.7]} 18. f3
{[%clk 0:02:00.5]} 18... e5 {[%clk 0:01:45.5]} 19. Nf5 {[%clk 0:01:58]} 19... d5
{[%clk 0:01:46]} 20. Qe3 {[%clk 0:01:57.9]} 20... h6 {[%clk 0:01:34.4]} 21. b4
{[%clk 0:01:52.9]} 21... axb4 {[%clk 0:01:28.6]} 22. Nxb4 {[%clk 0:01:52.7]}
22... dxe4 {[%clk 0:01:06]} 23. fxe4 {[%clk 0:01:39.1]} 23... Nfxe4 {[%clk
0:00:56.5]} 24. O-O {[%clk 0:01:27.8]} 24... Nxc3 {[%clk 0:00:37]} 25. Qxc3
{[%clk 0:00:55.8]} 25... Nxa4+ {[%clk 0:00:36.2]} 26. Qe3 {[%clk 0:00:54.2]}
26... Qxb5 {[%clk 0:00:36.5]} 27. Nd6 {[%clk 0:00:48.9]} 27... Qxb4 {[%clk
0:00:22.6]} 28. Rxf7+ {[%clk 0:00:44.4]} 28... Kg8 {[%clk 0:00:23.1]} 29. Rxb7
{[%clk 0:00:44.8]} 29... Qd4 {[%clk 0:00:16.3]} 30. Qxd4 {[%clk 0:00:42.6]}
30... exd4 {[%clk 0:00:17.2]} 31. Ne4 {[%clk 0:00:37.2]} 31... Ra6 {[%clk
0:00:05]} 32. Rc1 {[%clk 0:00:31.3]} 32... Nc3 {[%clk 0:00:05]} 33. Nxc3 {[%clk
0:00:19.3]} 33... dxc3 {[%clk 0:00:05.9]} 34. Rxc3 {[%clk 0:00:19.8]} 34... Ra8
{[%clk 0:00:06]} 35. Rcc7 {[%clk 0:00:19.6]} 35... Kf8 {[%clk 0:00:03.8]} 36.
Rf7+ {[%clk 0:00:19.4]} 36... Ke8 {[%clk 0:00:04.1]} 37. Rbe7+ {[%clk
0:00:19.5]} 37... Kd8 {[%clk 0:00:04.3]} 38. Re6 {[%clk 0:00:17]} 38... Rb8
{[%clk 0:00:03.4]} 39. Rff6 {[%clk 0:00:16.6]} 39... Kd7 {[%clk 0:00:02.9]} 40.
Rxh6 {[%clk 0:00:16.4]} 40... Rxh6 {[%clk 0:00:03.3]} 41. Rxh6 {[%clk
0:00:17.3]} 41... Rg8 {[%clk 0:00:02.4]} 42. Kh2 {[%clk 0:00:16.2]} 42... Ke7
{[%clk 0:00:02.4]} 43. Kg3 {[%clk 0:00:16.6]} 43... Rd8 {[%clk 0:00:01.9]} 44.
Rg6 {[%clk 0:00:16.6]} 44... Rd5 {[%clk 0:00:01.8]} 45. Kg4 {[%clk 0:00:16.7]}
45... Rd2 {[%clk 0:00:01.9]} 46. g3 {[%clk 0:00:16.8]} 46... Rd4+ {[%clk
0:00:01.5]} 47. Kxg5 {[%clk 0:00:17]} 47... Kf7 {[%clk 0:00:02.1]} 48. Rf6+
{[%clk 0:00:17]} 48... Kg7 {[%clk 0:00:01.9]} 49. Rf4 {[%clk 0:00:17.3]} 49...
Rd5+ {[%clk 0:00:01.5]} 50. Kh4 {[%clk 0:00:17.7]} 50... Rd3 {[%clk 0:00:01.8]}
51. g4 {[%clk 0:00:18.1]} 51... Rd1 {[%clk 0:00:02.3]} 52. Ra4 {[%clk
0:00:18.7]} 52... Rd5 {[%clk 0:00:02]} 53. Ra7+ {[%clk 0:00:18.1]} 53... Kg8
{[%clk 0:00:01.9]} 54. Ra6 {[%clk 0:00:18.7]} 54... Rd1 {[%clk 0:00:02]} 55. h6
{[%clk 0:00:19]} 55... Rd5 {[%clk 0:00:02.3]} 56. g5 {[%clk 0:00:19.2]} 56...
Rd1 {[%clk 0:00:02.2]} 57. Kh5 {[%clk 0:00:19.6]} 57... Rd7 {[%clk 0:00:02.2]}
58. Re6 {[%clk 0:00:19.2]} 58... Rd8 {[%clk 0:00:02.3]} 59. Kg6 {[%clk
0:00:19.2]} 59... Kh8 {[%clk 0:00:02.8]} 60. Kf5 {[%clk 0:00:19.6]} 60... Rf8+
{[%clk 0:00:03.2]} 61. Rf6 {[%clk 0:00:20.1]} 61... Rd8 {[%clk 0:00:03.6]} 62.
g6 {[%clk 0:00:20.7]} 62... Rd5+ {[%clk 0:00:03]} 63. Ke6 {[%clk 0:00:21]} 63...
Rd8 {[%clk 0:00:03]} 64. Ke7 {[%clk 0:00:21.5]} 64... Rg8 {[%clk 0:00:01.1]} 65.
g7+ {[%clk 0:00:19]} 65... Kh7 {[%clk 0:00:01.2]} 66. Rf8 {[%clk 0:00:19.6]} 1-0